fUSD/lending_fUSD_20250113
["ID","MTS","AMOUNT","RATE_DAILY","PERIOD"]
[348839369,1736801442567,-502.88532292,9.97e-05,2]
[348839370,1736801442577,-500.0,9.97e-05,2]
[348839371,1736801442586,-500.0,9.97e-05,2]
[348839372,1736801442596,-500.0,9.97e-05,2]
[348839373,1736801442605,-500.0,9.97e-05,2]
[348839374,1736801442615,-500.0,9.97e-05,2]
[348839375,1736801442626,-500.1898357,9.97e-05,2]
[348839376,1736801442636,-500.0,9.97e-05,2]
[348839377,1736801442650,-501.45164206,9.97e-05,2]
[348839378,1736801442660,-500.0,9.97e-05,2]
[348839379,1736801442671,-500.0,9.97e-05,2]
[348839380,1736801442920,-500.0,9.97e-05,2]
[348839381,1736801442931,-500.0,9.97e-05,2]
[348839382,1736801442941,-500.0,9.97e-05,2]
[348839383,1736801442950,-2921.97,9.97e-05,2]
[348839384,1736801442959,-500.0,9.97e-05,2]
[348839385,1736801442969,-500.0,9.97e-05,2]
[348839386,1736801442986,-501.88695464,9.97e-05,2]
[348839387,1736801442995,-500.0,9.97e-05,2]
[348839388,1736801443005,-502.00187415,9.97e-05,2]
[348839389,1736801443014,-500.0,9.97e-05,2]
[348839390,1736801443023,-500.0,9.97e-05,2]
[348839391,1736801443037,-500.0,9.97e-05,2]
[348839392,1736801443046,-500.0,9.97e-05,2]
[348839393,1736801443055,-500.0,9.97e-05,2]
[348839394,1736801443065,-500.0,9.97e-05,2]
[348839395,1736801443075,-500.94760249,9.97e-05,2]
[348839396,1736801443085,-500.0,9.97e-05,2]
[348839397,1736801443094,-500.0,9.97e-05,2]
[348839398,1736801443103,-500.0,9.97e-05,2]
[348839399,1736801443115,-500.0,9.97e-05,2]
[348839400,1736801443126,-503.18351931,9.97e-05,2]
[348839401,1736801443135,-482.29991314,9.97e-05,2]
[348839403,1736801443144,-500.0,9.97e-05,2]
[348839404,1736801443153,-500.0,9.97e-05,2]
[348839405,1736801443163,-500.0,9.97e-05,2]
[348839406,1736801443172,-500.0,9.97e-05,2]
[348839407,1736801443182,-500.0,9.97e-05,2]
[348839408,1736801443192,-500.0,9.97e-05,2]
[348839409,1736801443202,-500.0,9.97e-05,2]
[348839410,1736801443211,-500.0,9.97e-05,2]
[348839411,1736801443227,-500.0,9.97e-05,2]
[348839412,1736801443237,-504.48289189,9.97e-05,2]
[348839413,1736801443247,-500.0,9.97e-05,2]
[348839416,1736801443256,-500.9955463,9.97e-05,2]
[348839418,1736801443265,-500.0,9.97e-05,2]
[348839422,1736801443275,-500.0,9.97e-05,2]
[348839423,1736801443284,-500.0,9.97e-05,2]
[348839425,1736801443293,-500.0,9.97e-05,2]
[348839426,1736801443302,-943.33,9.97e-05,2]
[348839428,1736801443311,-500.0,9.97e-05,2]
[348839429,1736801443321,-500.0,9.97e-05,2]
[348839431,1736801443330,-500.0,9.97e-05,2]
[348839432,1736801443339,-500.0,9.97e-05,2]
[348839433,1736801443349,-500.0,9.97e-05,2]
[348839434,1736801443359,-500.0,9.97e-05,2]
[348839435,1736801443368,-500.0,9.97e-05,2]
[348839436,1736801443377,-500.0,9.97e-05,2]
[348839437,1736801443387,-202.05115328,9.97e-05,2]
[348839438,1736801443396,-223.6156992,9.97e-05,2]
[348839439,1736801443405,-500.0,9.97e-05,2]
[348839440,1736801443414,-500.0,9.97e-05,2]
[348839441,1736801443424,-500.0,9.97e-05,2]
[348839442,1736801443434,-796.17,9.97e-05,2]
[348839443,1736801443444,-500.0,9.97e-05,2]
[348839444,1736801443453,-500.0,9.97e-05,2]
[348839445,1736801443464,-500.0,9.97e-05,2]
[348839446,1736801443481,-500.0,9.97e-05,2]
[348839447,1736801443491,-500.0,9.97e-05,2]
[348839448,1736801443502,-500.86035419,9.97e-05,2]
[348839449,1736801443513,-500.0,9.97e-05,2]
[348839450,1736801443524,-252.45510089,9.97e-05,2]
[348839451,1736801443534,-500.0,9.97e-05,2]
[348839452,1736801443545,-500.0,9.97e-05,2]
[348839453,1736801443555,-500.0,9.97e-05,2]
[348839454,1736801443566,-500.0,9.97e-05,2]
[348839455,1736801443576,-500.0,9.97e-05,2]
[348839456,1736801443585,-500.0,9.97e-05,2]
[348839457,1736801443596,-502.20868108,9.97e-05,2]
[348839458,1736801443605,-500.0,9.97e-05,2]
[348839459,1736801443615,-633.32,9.97e-05,2]
[348839460,1736801443625,-500.0,9.97e-05,2]
[348839461,1736801443633,-500.0,9.97e-05,2]
[348839462,1736801443643,-500.0,9.97e-05,2]
[348839463,1736801443652,-500.0,9.97e-05,2]
[348839464,1736801443662,-500.0,9.97e-05,2]
[348839465,1736801443671,-500.0,9.97e-05,2]
[348839466,1736801443680,-500.0,9.97e-05,2]
[348839467,1736801443689,-500.0,9.97e-05,2]
[348839468,1736801443699,-500.0,9.97e-05,2]
[348839469,1736801443708,-500.0,9.97e-05,2]
[348839470,1736801443717,-500.0,9.97e-05,2]
[348839471,1736801443729,-500.0,9.97e-05,2]
[348839472,1736801443738,-500.0,9.97e-05,2]
[348839473,1736801443747,-500.0,9.97e-05,2]
[348839474,1736801443757,-500.0,9.97e-05,2]
[348839475,1736801443766,-500.0,9.97e-05,2]
[348839476,1736801443776,-504.57192912,9.97e-05,2]
[348839477,1736801443785,-729.6,9.97e-05,2]
[348839478,1736801443795,-500.0,9.97e-05,2]
[348839479,1736801443804,-500.0,9.97e-05,2]
[348839481,1736801443813,-500.0,9.97e-05,2]
[348839482,1736801443822,-502.76088552,9.97e-05,2]
[348839483,1736801443831,-500.0,9.97e-05,2]
[348839484,1736801443840,-500.0,9.97e-05,2]
[348839485,1736801443849,-500.0,9.97e-05,2]
[348839486,1736801443858,-500.0,9.97e-05,2]
[348839487,1736801443868,-500.0,9.97e-05,2]
[348839488,1736801443877,-500.0,9.97e-05,2]
[348839489,1736801443887,-500.0,9.97e-05,2]
[348839490,1736801443896,-500.0,9.97e-05,2]
[348839491,1736801443905,-500.0,9.97e-05,2]
[348839492,1736801443915,-500.0,9.97e-05,2]
[348839493,1736801443925,-500.0,9.97e-05,2]
[348839494,1736801443934,-500.0,9.97e-05,2]
[348839495,1736801443943,-500.0,9.97e-05,2]
[348839496,1736801443953,-500.0,9.97e-05,2]
[348839497,1736801443962,-500.0,9.97e-05,2]
[348839498,1736801443975,-500.0,9.97e-05,2]
[348839500,1736801443984,-500.0,9.97e-05,2]
[348839501,1736801443993,-503.5296091,9.97e-05,2]
[348839502,1736801444002,-500.0,9.97e-05,2]
[348839503,1736801444011,-551.28,9.97e-05,2]
[348839504,1736801444020,-500.0,9.97e-05,2]
[348839505,1736801444030,-500.0,9.97e-05,2]
[348839506,1736801444040,-500.0,9.97e-05,2]
[348839507,1736801444049,-500.0,9.97e-05,2]
[348839508,1736801444059,-514.03164987,9.97e-05,2]
[348839509,1736801444069,-500.0,9.97e-05,2]
[348839510,1736801444081,-500.0,9.97e-05,2]
[348839511,1736801444090,-502.00402069,9.97e-05,2]
[348839512,1736801444100,-500.0,9.97e-05,2]
[348839513,1736801444111,-500.0,9.97e-05,2]
[348839514,1736801444121,-600.52547341,9.97e-05,2]
[348839515,1736801444131,-500.0,9.97e-05,2]
[348839516,1736801444141,-502.76022773,9.97e-05,2]
[348839517,1736801444151,-500.0,9.97e-05,2]
[348839518,1736801444161,-500.0,9.97e-05,2]
[348839519,1736801444171,-500.0,9.97e-05,2]
[348839520,1736801444180,-500.0,9.97e-05,2]
[348839521,1736801444191,-359.47784474,9.97e-05,2]
[348839522,1736801444200,-500.0,9.97e-05,2]
[348839523,1736801444210,-1406.94,9.97e-05,2]
[348839524,1736801444223,-500.0,9.97e-05,7]
[348839525,1736801444233,-500.0,9.97e-05,2]
[348839526,1736801444242,-500.0,9.97e-05,2]
[348839527,1736801444252,-553.45,9.97e-05,2]
[348839528,1736801444262,-500.0,9.97e-05,2]
[348839529,1736801444271,-500.0,9.97e-05,2]
[348839530,1736801444282,-501.6875977,9.97e-05,2]
[348839531,1736801444291,-500.0,9.97e-05,2]
[348839532,1736801444301,-500.0,9.97e-05,2]
[348839533,1736801444311,-500.0,9.97e-05,2]
[348839534,1736801444321,-1272.56,9.97e-05,2]
[348839535,1736801444331,-500.0,9.97e-05,2]
[348839536,1736801444340,-500.0,9.97e-05,2]
[348839537,1736801444350,-500.0,9.97e-05,2]
[348839538,1736801444359,-500.0,9.97e-05,2]
[348839539,1736801444369,-500.0,9.97e-05,2]
[348839540,1736801444379,-503.90757331,9.97e-05,2]
[348839541,1736801444390,-500.0,9.97e-05,2]
[348839542,1736801444400,-1512.16,9.97e-05,2]
[348839543,1736801444409,-504.63089558,9.97e-05,2]
[348839544,1736801444419,-500.0,9.97e-05,2]
[348839545,1736801444429,-501.23877511,9.97e-05,2]
[348839546,1736801444438,-500.0,9.97e-05,2]
[348839547,1736801444448,-500.0,9.97e-05,2]
[348839548,1736801444458,-640.47587457,9.97e-05,2]
[348839549,1736801444467,-500.0,9.97e-05,2]
[348839550,1736801444479,-645.76300785,9.97e-05,2]
[348839551,1736801444488,-500.0,9.97e-05,2]
[348839552,1736801444498,-500.0,9.97e-05,2]
[348839553,1736801444507,-502.2002665,9.97e-05,2]
[348839554,1736801444516,-500.0,9.97e-05,2]
[348839555,1736801444526,-500.0,9.97e-05,2]
[348839556,1736801444535,-500.0,9.97e-05,2]
[348839557,1736801444544,-500.0,9.97e-05,2]
[348839558,1736801444554,-500.0,9.97e-05,2]
[348839559,1736801444563,-500.0,9.97e-05,2]
[348839560,1736801444573,-583.33,9.97e-05,2]
[348839561,1736801444583,-504.66095966,9.97e-05,2]
[348839562,1736801444592,-471.947159,9.97e-05,2]
[348839563,1736801444601,-995.3,9.97e-05,2]
[348839564,1736801444611,-501.11861816,9.97e-05,2]
[348839565,1736801444622,-500.0,9.97e-05,2]
[348839566,1736801444632,-500.0,9.97e-05,2]
[348839567,1736801444641,-444.28162251,9.97e-05,2]
[348839568,1736801444651,-619.97,9.97e-05,2]
[348839569,1736801444660,-506.25676242,9.97e-05,2]
[348839570,1736801444670,-500.0,9.97e-05,2]
[348839571,1736801444679,-503.77681341,9.97e-05,2]
[348839572,1736801444689,-500.0,9.97e-05,2]
[348839573,1736801444698,-500.0,9.97e-05,2]
[348839574,1736801444708,-500.0,9.97e-05,2]
[348839575,1736801444717,-500.0,9.97e-05,2]
[348839576,1736801444729,-500.0,9.97e-05,2]
[348839577,1736801444738,-501.25482059,9.97e-05,2]
[348839578,1736801444748,-500.0,9.97e-05,2]
[348839579,1736801444758,-476.90356869,9.97e-05,2]
[348839580,1736801444767,-500.0,9.97e-05,2]
[348839581,1736801444777,-500.0,9.97e-05,2]
[348839582,1736801444786,-500.0,9.97e-05,2]
[348839583,1736801444795,-500.0,9.97e-05,2]
[348839584,1736801444804,-500.0,9.97e-05,2]
[348839585,1736801444814,-500.0,9.97e-05,2]
[348839586,1736801444824,-500.0,9.97e-05,2]
[348839587,1736801444834,-500.0,9.97e-05,2]
[348839588,1736801444843,-500.0,9.97e-05,2]
[348839589,1736801444853,-505.85252167,9.97e-05,2]
[348839590,1736801444862,-500.0,9.97e-05,2]
[348839591,1736801444873,-508.66335851,9.97e-05,2]
[348839592,1736801444883,-500.0,9.97e-05,2]
[348839593,1736801444893,-500.0,9.97e-05,2]
[348839594,1736801444902,-500.0,9.97e-05,2]
[348839595,1736801444911,-500.0,9.97e-05,2]
[348839596,1736801444921,-500.0,9.97e-05,2]
[348839597,1736801444930,-500.0,9.97e-05,2]
[348839598,1736801444940,-500.0,9.97e-05,2]
[348839599,1736801444949,-500.0,9.97e-05,2]
[348839600,1736801444958,-640.99,9.97e-05,2]
[348839601,1736801444969,-500.0,9.97e-05,2]
[348839602,1736801444978,-2123.6,9.97e-05,2]
[348839603,1736801444987,-500.0,9.97e-05,2]
[348839604,1736801444995,-500.0,9.97e-05,2]
[348839605,1736801445005,-500.0,9.97e-05,2]
[348839606,1736801445015,-500.0,9.97e-05,2]
[348839607,1736801445025,-500.0,9.97e-05,2]
[348839608,1736801445037,-500.0,9.97e-05,2]
[348839609,1736801445047,-500.0,9.97e-05,2]
[348839610,1736801445057,-500.0,9.97e-05,2]
[348839611,1736801445066,-500.0,9.97e-05,2]
[348839612,1736801445077,-500.0,9.97e-05,2]
[348839613,1736801445086,-500.0,9.97e-05,2]
[348839614,1736801445095,-500.0,9.97e-05,2]
[348839615,1736801445104,-1074.35,9.97e-05,2]
[348839616,1736801445115,-604.23,9.97e-05,2]
[348839617,1736801445124,-500.0,9.97e-05,2]
[348839618,1736801445133,-666.8,9.97e-05,2]
[348839619,1736801445142,-500.0,9.97e-05,2]
[348839620,1736801445152,-500.0,9.97e-05,2]
[348839621,1736801445161,-500.0,9.97e-05,2]
[348839622,1736801445170,-500.0,9.97e-05,2]
[348839623,1736801445179,-500.0,9.97e-05,2]
[348839624,1736801445188,-500.0,9.97e-05,2]
[348839625,1736801445197,-500.0,9.97e-05,2]
[348839626,1736801445207,-500.0,9.97e-05,2]
[348839627,1736801445216,-500.0,9.97e-05,2]
[348839628,1736801445227,-500.0,9.97e-05,2]
[348839629,1736801445236,-500.0,9.97e-05,2]
[348839630,1736801445304,-500.0,9.97e-05,2]
[348839631,1736801445314,-2576.08,9.97e-05,2]
[348839632,1736801445323,-500.0,9.97e-05,2]
[348839633,1736801445332,-246.06455722,9.97e-05,2]
[348839634,1736801445341,-500.0,9.97e-05,2]
[348839635,1736801445350,-500.0,9.97e-05,2]
[348839636,1736801445360,-500.0,9.97e-05,2]
[348839637,1736801445369,-500.0,9.97e-05,2]
[348839638,1736801445378,-500.0,9.97e-05,2]
[348839639,1736801445387,-500.0,9.97e-05,2]
[348839640,1736801445397,-500.0,9.97e-05,2]
[348839641,1736801445406,-500.0,9.97e-05,2]
[348839642,1736801445415,-500.0,9.97e-05,2]
[348839643,1736801445423,-500.0,9.97e-05,2]
[348839644,1736801445432,-500.0,9.97e-05,2]
[348839645,1736801445442,-500.0,9.97e-05,2]
[348839646,1736801445451,-502.22120725,9.97e-05,2]
[348839647,1736801445459,-500.0,9.97e-05,2]
[348839648,1736801445469,-2558.7,9.97e-05,2]
[348839649,1736801445479,-500.0,9.97e-05,2]
[348839650,1736801445487,-500.0,9.97e-05,2]
[348839651,1736801445496,-500.0,9.97e-05,2]
[348839652,1736801445505,-500.0,9.97e-05,2]
[348839653,1736801445514,-500.0,9.97e-05,2]
[348839654,1736801445524,-500.0,9.97e-05,2]
[348839655,1736801445532,-500.0,9.97e-05,2]
[348839656,1736801445542,-500.0,9.97e-05,2]
[348839657,1736801445551,-1540.99,9.97e-05,2]
[348839658,1736801445560,-500.0,9.97e-05,2]
[348839659,1736801445570,-500.0,9.97e-05,2]
[348839660,1736801445579,-500.0,9.97e-05,2]
[348839661,1736801445588,-500.63020165,9.97e-05,2]
[348839662,1736801445597,-500.0,9.97e-05,2]
[348839663,1736801445607,-500.0,9.97e-05,2]
[348839664,1736801445616,-500.0,9.97e-05,2]
[348839665,1736801445625,-500.0,9.97e-05,2]
[348839666,1736801445634,-500.0,9.97e-05,2]
[348839667,1736801445643,-500.0,9.97e-05,2]
[348839668,1736801445653,-500.0,9.97e-05,2]
[348839669,1736801445664,-703.62,9.97e-05,2]
[348839670,1736801445674,-492.31436427,9.97e-05,2]
[348839671,1736801445684,-500.0,9.97e-05,2]
[348839672,1736801445693,-500.0,9.97e-05,2]
[348839673,1736801445704,-500.0,9.97e-05,2]
[348839674,1736801445715,-500.0,9.97e-05,2]
[348839675,1736801445728,-500.0,9.97e-05,2]
[348839676,1736801445737,-500.0,9.97e-05,2]
[348839677,1736801445747,-500.0,9.97e-05,2]
[348839678,1736801445758,-501.01381455,9.97e-05,2]
[348839679,1736801445767,-513.3945544,9.97e-05,2]
[348839680,1736801445776,-502.92272852,9.97e-05,2]
[348839681,1736801445785,-500.0,9.97e-05,2]
[348839682,1736801445794,-500.0,9.97e-05,2]
[348839683,1736801445804,-500.59892972,9.97e-05,2]
[348839684,1736801445813,-500.0,9.97e-05,2]
[348839685,1736801445825,-513.08232143,9.97e-05,2]
[348839686,1736801445835,-1622.63,9.97e-05,2]
[348839687,1736801445846,-500.0,9.97e-05,2]
[348839688,1736801445855,-500.0,9.97e-05,2]
[348839689,1736801445864,-500.0,9.97e-05,2]
[348839690,1736801445874,-520.89227985,9.97e-05,2]
[348839691,1736801445883,-500.0,9.97e-05,2]
[348839692,1736801445893,-1598.85,9.97e-05,2]
[348839693,1736801445902,-502.58057232,9.97e-05,2]
[348839694,1736801445911,-500.0,9.97e-05,2]
[348839695,1736801445920,-526.81258031,9.97e-05,2]
[348839696,1736801445930,-502.38317558,9.97e-05,2]
[348839697,1736801445939,-500.0,9.97e-05,2]
[348839698,1736801445949,-500.0,9.97e-05,2]
[348839699,1736801445960,-500.0,9.97e-05,2]
[348839700,1736801445972,-150.0,9.97e-05,2]
[348839701,1736801445982,-500.0,9.97e-05,2]
[348839702,1736801445992,-500.0,9.97e-05,2]
[348839703,1736801446001,-500.0,9.97e-05,2]
[348839704,1736801446010,-500.0,9.97e-05,2]
[348839705,1736801446019,-5000.0,9.97e-05,2]
[348839706,1736801446031,-500.0,9.97e-05,2]
[348839707,1736801446041,-500.0,9.97e-05,2]
[348839708,1736801446054,-500.0,9.97e-05,2]
[348839709,1736801446063,-557.63153307,9.97e-05,2]
[348839710,1736801446074,-502.56001746,9.97e-05,2]
[348839711,1736801446084,-501.8373166,9.97e-05,2]
[348839712,1736801446094,-1696.63,9.97e-05,2]
[348839713,1736801446106,-500.52082562,9.97e-05,2]
[348839714,1736801446117,-500.0,9.97e-05,2]
[348839715,1736801446128,-500.0,9.97e-05,2]
[348839716,1736801446137,-500.0,9.97e-05,2]
[348839718,1736801446146,-509.64,9.97e-05,2]
[348839721,1736801446156,-4233.85,9.97e-05,2]
[348839723,1736801446166,-501.36850105,9.97e-05,2]
[348839725,1736801446175,-503.63074579,9.97e-05,2]
[348839726,1736801446184,-561.64709838,9.97e-05,2]
[348839727,1736801446194,-500.0,9.97e-05,2]
[348839729,1736801446203,-980.97,9.97e-05,2]
[348839731,1736801446212,-500.0,9.97e-05,2]
[348839732,1736801446224,-500.0,9.97e-05,2]
[348839733,1736801446233,-500.0,9.97e-05,2]
[348839734,1736801446243,-500.0,9.97e-05,2]
[348839735,1736801446252,-500.0,9.97e-05,2]
[348839736,1736801446261,-500.0,9.97e-05,2]
[348839737,1736801446270,-1315.85,9.97e-05,2]
[348839738,1736801446280,-500.0,9.97e-05,2]
[348839739,1736801446289,-500.0,9.97e-05,2]
[348839740,1736801446298,-500.0,9.97e-05,2]
[348839741,1736801446308,-500.0,9.97e-05,2]
[348839742,1736801446317,-500.0,9.97e-05,2]
[348839743,1736801446327,-500.0,9.97e-05,2]
[348839744,1736801446336,-500.0,9.97e-05,2]
[348839745,1736801446345,-506.06718889,9.97e-05,2]
[348839746,1736801446354,-1042.76,9.97e-05,2]
[348839747,1736801446363,-17516.70548035,9.97e-05,2]
[348839748,1736801446374,-200.0,9.97e-05,2]
[348839749,1736801446383,-1020.89089635,9.97e-05,2]
[348839750,1736801446392,-14176.65976301,9.971e-05,2]
[348839751,1736801446401,-178.40276522,9.971e-05,2]
[348839752,1736801446409,-200.0,9.971e-05,2]
[348839753,1736801446419,-1020.89089635,9.972e-05,2]
[348839754,1736801446428,-759.25170892,9.972e-05,2]
[348839755,1736801446437,-218.09834367,9.972e-05,2]
[348839756,1736801446447,-1026.44645191,9.972e-05,2]
[348839757,1736801446456,-500.0,9.972e-05,2]
[348839758,1736801446466,-500.0,9.972e-05,2]
[348839759,1736801446479,-500.0,9.972e-05,2]
[348839760,1736801446489,-500.0,9.972e-05,2]
[348839761,1736801446498,-27559.93736974,9.972e-05,2]
[348839762,1736801446507,-1459.48529618,9.972e-05,2]
[348839763,1736801446517,-935.84163456,9.972e-05,2]
[348839764,1736801446526,-524.09661982,9.972e-05,2]
[348839765,1736801446535,-178.40276522,9.972e-05,2]
[348839766,1736801446545,-942.22074103,9.972e-05,2]
[348839767,1736801446554,-1273.69684139,9.972e-05,2]
[348839768,1736801446564,-241.6838138,9.973e-05,2]
[348839769,1736801446573,-7440.0,9.973e-05,2]
[348839770,1736801446582,-22673.0,9.973e-05,2]
[348839771,1736801446591,-801.0,9.973e-05,2]
[348839772,1736801446601,-2769.0,9.973e-05,2]
[348839773,1736801446611,-151.88143581,9.973e-05,2]
[348839774,1736801446620,-500.0,9.973e-05,2]
[348839775,1736801446630,-500.0,9.973e-05,2]
[348839776,1736801446639,-151.87989444,9.973e-05,2]
[348839777,1736801446649,-500.0,9.973e-05,2]
[348839778,1736801446659,-18049.58234538,9.973e-05,2]
[348839779,1736801446669,-1020.89089635,9.973e-05,2]
[348839780,1736801446679,-1392.27891416,9.973e-05,2]
[348839781,1736801446689,-1342.7715931,9.973e-05,2]
[348839782,1736801446698,-2828.28,9.973e-05,2]
[348839783,1736801446708,-612.51,9.973e-05,2]
[348839784,1736801446717,-2592.15,9.973e-05,2]
[348839785,1736801446730,-547.56,9.973e-05,2]
[348839786,1736801446740,-500.0,9.973e-05,2]
[348839787,1736801446750,-621.68,9.973e-05,2]
[348839788,1736801446760,-1367.7213641,9.973e-05,2]
[348839789,1736801446770,-28803.89606409,9.973e-05,2]
[348839790,1736801446780,-1110.99112742,9.973e-05,2]
[348839791,1736801446790,-3050.24934661,9.973e-05,2]
[348839792,1736801446800,-3050.24934661,9.973e-05,2]
[348839793,1736801446810,-218.09834367,9.973e-05,2]
[348839794,1736801446820,-1026.44645191,9.974e-05,2]
[348839795,1736801446830,-1392.27891416,9.974e-05,2]
[348839796,1736801446840,-8604.15032301,9.974e-05,2]
[348839797,1736801446850,-178.40276522,9.974e-05,2]
[348839798,1736801446860,-509.7712596,9.974e-05,2]
[348839799,1736801446869,-693.40676972,9.974e-05,2]
[348839800,1736801446879,-500.0,9.974e-05,2]
[348839801,1736801446888,-67290.36483506,9.974e-05,2]
[348839802,1736801446898,-8604.15032301,9.974e-05,2]
[348839803,1736801446908,-942.22074103,9.975e-05,2]
[348839804,1736801446918,-1367.7213641,9.975e-05,2]
[348839805,1736801446928,-500.0,9.975e-05,2]
[348839806,1736801446937,-500.0,9.975e-05,2]
[348839807,1736801446947,-500.0,9.975e-05,2]
[348839808,1736801446956,-1367.7213641,9.975e-05,2]
[348839809,1736801446966,-16886.56628481,9.975e-05,2]
[348839810,1736801446978,-1026.44645191,9.975e-05,2]
[348839811,1736801446988,-18049.58234538,9.975e-05,2]
[348839812,1736801446997,-241.6838138,9.976e-05,2]
[348839813,1736801447007,-178.40276522,9.976e-05,2]
[348839814,1736801447017,-1020.89089635,9.976e-05,2]
[348839815,1736801447027,-1342.7715931,9.976e-05,2]
[348839816,1736801447038,-67290.36483506,9.976e-05,2]
[348839817,1736801447049,-17516.70548035,9.976e-05,2]
[348839818,1736801447059,-693.40676972,9.976e-05,2]
[348839819,1736801447071,-524.09661982,9.977e-05,2]
[348839821,1736801447080,-1058.62973305,9.977e-05,2]
[348839824,1736801447090,-1020.89089635,9.977e-05,2]
[348839826,1736801447101,-1058.62973305,9.977e-05,2]
[348839828,1736801447110,-500.0,9.977e-05,2]
[348839831,1736801447121,-763.29024785,9.977e-05,2]
[348839834,1736801447131,-200.0,9.977e-05,2]
[348839838,1736801447142,-178.40276522,9.977e-05,2]
[348839841,1736801447151,-16786.20295067,9.977e-05,2]
[348839844,1736801447160,-11791.15533592,9.977e-05,2]
[348839845,1736801447170,-200.0,9.977e-05,2]
[348839846,1736801447179,-935.84163456,9.977e-05,2]
[348839847,1736801447190,-10930.43157916,9.977e-05,2]
[348839848,1736801447200,-10930.43157916,9.978e-05,2]
[348839849,1736801447210,-11791.15533592,9.978e-05,2]
[348839850,1736801447223,-218.09834367,9.978e-05,2]
[348839851,1736801447233,-18049.58234538,9.978e-05,2]
[348839852,1736801447243,-693.40676972,9.978e-05,2]
[348839853,1736801447252,-759.25170892,9.978e-05,2]
[348839854,1736801447262,-1110.99112742,9.978e-05,2]
[348839855,1736801447273,-20598.07839305,9.978e-05,2]
[348839856,1736801447282,-200.0,9.978e-05,2]
[348839857,1736801447292,-16886.56628481,9.978e-05,2]
[348839858,1736801447302,-200.0,9.978e-05,2]
[348839859,1736801447311,-4088.00223319,9.979e-05,2]
[348839860,1736801447321,-759.25170892,9.979e-05,2]
[348839861,1736801447331,-178.40276522,9.979e-05,2]
[348839862,1736801447341,-27559.93736974,9.979e-05,2]
[348839863,1736801447351,-693.40676972,9.979e-05,2]
[348839864,1736801447361,-200.0,9.979e-05,2]
[348839865,1736801447371,-1459.48529618,9.98e-05,2]
[348839866,1736801447381,-1342.7715931,9.98e-05,2]
[348839867,1736801447391,-67290.36483506,9.98e-05,2]
[348839868,1736801447400,-27559.93736974,9.98e-05,2]
[348839869,1736801447410,-4088.00223319,9.98e-05,2]
[348839870,1736801447420,-200.0,9.98e-05,2]
[348839871,1736801447430,-14176.65976301,9.98e-05,2]
[348839872,1736801447440,-200.0,9.98e-05,2]
[348839873,1736801447450,-200.0,9.98e-05,2]
[348839874,1736801447459,-178.40276522,9.98e-05,2]
[348839875,1736801447469,-4088.00223319,9.981e-05,2]
[348839876,1736801447482,-27559.93736974,9.981e-05,2]
[348839877,1736801447492,-200.0,9.981e-05,2]
[348839878,1736801447501,-10930.43157916,9.981e-05,2]
[348839879,1736801447511,-500.0,9.981e-05,2]
[348839880,1736801447521,-500.0,9.981e-05,2]
[348839881,1736801447530,-509.7712596,9.981e-05,2]
[348839882,1736801447540,-16886.56628481,9.981e-05,2]
[348839883,1736801447550,-16886.56628481,9.981e-05,2]
[348839884,1736801447560,-1459.48529618,9.982e-05,2]
[348839885,1736801447569,-763.29024785,9.982e-05,2]
[348839886,1736801447579,-3050.24934661,9.982e-05,2]
[348839887,1736801447588,-178.40276522,9.982e-05,2]
[348839888,1736801447598,-418.1241212,9.982e-05,2]
[348839889,1736801447607,-935.84163456,9.982e-05,2]
[348839890,1736801447617,-524.09661982,9.982e-05,2]
[348839891,1736801447626,-8604.15032301,9.982e-05,2]
[348839892,1736801447636,-1367.7213641,9.983e-05,2]
[348839893,1736801447647,-3050.24934661,9.983e-05,2]
[348839894,1736801447657,-10930.43157916,9.983e-05,2]
[348839895,1736801447667,-11791.15533592,9.983e-05,2]
[348839896,1736801447677,-1342.7715931,9.983e-05,2]
[348839897,1736801447687,-1459.48529618,9.983e-05,2]
[348839898,1736801447696,-524.09661982,9.983e-05,2]
[348839899,1736801447707,-200.0,9.983e-05,2]
[348839900,1736801447718,-6973.89206638,9.983e-05,2]
[348839901,1736801447731,-8604.15032301,9.984e-05,2]
[348839902,1736801447741,-178.40276522,9.984e-05,2]
[348839903,1736801447750,-708.30651456,9.984e-05,2]